fUST/lending_fUST_20251119
["ID","MTS","AMOUNT","RATE_DAILY","PERIOD"]
[394414925,1763545841634,-1751.17744713,0.00018142,2]
[394414927,1763545841654,-1178.0,0.00018175,2]
[394414928,1763545841672,-460.0,0.00018418,2]
[394414929,1763545841683,-3500.0,0.0001846,2]
[394414930,1763545841693,-3500.0,0.0001846,2]
[394414931,1763545841703,-3500.0,0.0001846,2]
[394414932,1763545841715,-151.0,0.000185,2]
[394414933,1763545841725,-1015.5092663,0.00018521,2]
[394414934,1763545841739,-1003.44060064,0.00018521,2]
[394414935,1763545841749,-1000.0,0.00018521,2]
[394414936,1763545841758,-229.41128076,0.00018521,2]
[394414937,1763545841770,-535.99228928,0.00018521,2]
[394414938,1763545841780,-1000.0,0.00018521,2]
[394414939,1763545841791,-1000.0,0.00018521,2]
[394414940,1763545841802,-1000.0,0.00018521,2]
[394414941,1763545841812,-2000.0,0.00018616,2]
[394414942,1763545841824,-2000.0,0.00018616,2]
[394414943,1763545841835,-1987.99960205,0.00018616,2]
[394414944,1763545841846,-2000.0,0.00018616,2]
[394414945,1763545841856,-944.92975414,0.00018616,2]
[394414946,1763545841865,-2000.0,0.00018616,2]
[394414947,1763545841874,-864.0,0.00018665,2]
[394414948,1763545841884,-560.0,0.00018966,2]
[394414949,1763545841894,-3000.0,0.00019008,2]
[394414950,1763545841904,-2000.0,0.00019008,2]
[394414951,1763545841914,-2013.64025914,0.00019008,2]
[394414952,1763545841923,-204.0,0.00019022,2]
[394414953,1763545841932,-1500.0,0.00019068,2]
[394414954,1763545841941,-1040.56070445,0.00019068,2]
[394414955,1763545841950,-1514.93271038,0.00019068,2]
[394414956,1763545841960,-1500.0,0.00019068,2]
[394414957,1763545841970,-1494.88981819,0.00019164,2]
[394414958,1763545841979,-2500.0,0.00019164,2]
[394414959,1763545841988,-2500.0,0.00019164,2]
[394414960,1763545841998,-2246.14522943,0.00019164,2]
[394414961,1763545842013,-180.001427,0.00019178,2]
[394414962,1763545842023,-180.001427,0.00019178,2]
[394414963,1763545842032,-180.001427,0.00019178,2]
[394414964,1763545842041,-180.001427,0.00019178,2]
[394414965,1763545842052,-180.001427,0.00019178,2]
[394414966,1763545842061,-180.001427,0.00019178,2]
[394414967,1763545842071,-180.001427,0.00019178,2]
[394414968,1763545842080,-180.001427,0.00019178,2]
[394414969,1763545842090,-180.001427,0.00019178,2]
[394414970,1763545842099,-180.001427,0.00019178,2]
[394414971,1763545842108,-180.001427,0.00019178,2]
[394414972,1763545842118,-180.001427,0.00019178,2]
[394414973,1763545842127,-180.001427,0.00019178,2]
[394414974,1763545842136,-180.001427,0.00019178,2]
[394414975,1763545842145,-180.001427,0.00019178,2]
[394414976,1763545842155,-180.001427,0.00019178,2]
[394414977,1763545842163,-153.84547182,0.00019178,2]
[394414978,1763545842173,-220.0,0.00019223,15]
[394414979,1763545842182,-151.0,0.000193,2]
[394414980,1763545842191,-1094.32822478,0.00019502,2]
[394414982,1763545842200,-768.81066452,0.00019514,2]
[394414984,1763545842209,-823.0,0.0001969,2]
[394414986,1763545842218,-3000.0,0.00019712,2]
[394414988,1763545842227,-2953.10479054,0.00019712,2]
[394414989,1763545842236,-501.38434486,0.0002,2]
[394414990,1763545842245,-115763.99306298,0.0002,2]
[394414995,1763545843674,-500.0,0.00015173,2]
[394414996,1763545843685,-500.0,0.00015447,2]
[394414997,1763545843695,-500.0,0.00015721,2]
[394414998,1763545843704,-500.0,0.00015995,2]
[394414999,1763545843713,-500.0,0.00016268,2]
[394415000,1763545843722,-5481.99547666,0.0002,2]
[394415002,1763545905683,5000.0,0.00015004,2]
[394415003,1763545921230,1487.20657953,0.00015004,2]
[394415004,1763545921269,3512.79342047,0.00015004,2]
[394415005,1763545929010,5000.0,0.00015004,2]
[394415610,1763545944381,1487.21657953,0.00015004,2]
[394415613,1763545944404,3512.78342047,0.00015004,2]
[394415696,1763545952466,5000.0,0.00015004,2]
[394415697,1763545967325,1487.22657953,0.00015004,2]
[394415698,1763545967347,3512.77342047,0.00015004,2]
[394415699,1763545975086,5000.0,0.00015004,2]
[394415700,1763545991065,5000.0,0.00015004,2]
[394415701,1763545998804,5000.0,0.00015004,2]
[394415702,1763546015063,0.01,0.00015004,2]
[394415703,1763546015087,4999.99,0.00015004,2]
[394415704,1763546022881,5000.0,0.00015004,2]
[394415705,1763546038427,0.02,0.00015004,2]
[394415706,1763546038450,4999.98,0.00015004,2]
[394415707,1763546046193,5000.0,0.00015004,2]
[394415708,1763546068455,0.03,0.00015004,2]
[394415709,1763546068624,4999.97,0.00015004,2]
[394415711,1763546090809,5000.0,0.00015004,2]
[394415712,1763546106052,0.04,0.00015004,2]
[394415713,1763546106077,4999.96,0.00015004,2]
[394415714,1763546113910,5000.0,0.00015004,2]
[394415715,1763546136756,0.05,0.00015004,2]
[394415716,1763546213270,3294.7071618,0.00014591,2]
[394415717,1763546230879,493.2584986,0.00014131,2]
[394415718,1763546329842,5000.0,0.00014996,2]
[394415719,1763546352334,1212.0443396,0.00014996,2]
[394415720,1763546352357,3787.9556604,0.00014996,2]
[394415721,1763546367645,2549.36765377,0.00014996,2]
[394415722,1763546375459,3662.68668583,0.00014996,2]
[394415723,1763546375482,1337.31331417,0.00014996,2]
[394415724,1763546380913,8662.69668583,0.00014228,2]
[394415725,1763546380934,10000.01,0.00014228,2]
[394415726,1763546380954,6128.59123777,0.00014228,2]
[394415727,1763546390614,3871.41876223,0.00014996,2]
[394415728,1763546390636,1128.58123777,0.00014996,2]
[394415729,1763546398460,5000.0,0.00014996,2]
[394415730,1763546413738,3871.42876223,0.00014996,2]
[394415731,1763546413763,189.75508456,0.00014996,2]
[394415732,1763546419315,3538.84135856,0.00014904,2]
[394415733,1763546421635,4642.47392256,0.00014996,2]
[394415734,1763546424239,1628.93963432,0.00014909,2]
[394415735,1763546424261,1909.90172424,0.00014909,2]
[394415736,1763546445030,2138.9575971,0.00014863,2]
[394415739,1763546796408,999.0,0.00014105,2]
[394415741,1763546880846,232.68,0.00014535,2]
[394415742,1763546881069,217.52,0.00014535,2]
[394415743,1763546988323,220.63,0.00015099,3]
[394415744,1763546998871,661.92,0.00015099,3]
[394415745,1763547001448,6411.8524029,0.00014521,2]
[394415746,1763547001471,10000.01,0.00014521,2]
[394415747,1763547001492,1773.4908687,0.00014521,2]
[394415748,1763547009297,337.08,0.00015099,3]
[394415749,1763547019906,296.22,0.00015099,3]
[394415750,1763547020895,5000.0,0.00014849,2]
[394415751,1763547030842,888.67,0.00015099,3]
[394415782,1763547031879,-150.0,0.00015004,2]
[394415783,1763547031889,-1229.2938748,0.00015004,2]
[394415784,1763547031898,-6118.40568387,0.00015009,2]
[394415785,1763547031907,-1200.0,0.00015099,2]
[394415786,1763547031917,-800.01572997,0.000151,2]
[394415787,1763547031927,-300.0,0.00015108,2]
[394415788,1763547031936,-500.0,0.00015109,2]
[394415789,1763547031946,-162.43544907,0.00015109,2]
[394415790,1763547031966,-346.56589205,0.00015109,2]
[394415794,1763547032112,-500.0,0.00015109,2]
[394415797,1763547032123,-500.0,0.00015109,2]
[394415799,1763547032132,-500.0,0.00015109,2]
[394415801,1763547032142,-500.0,0.00015109,2]
[394415803,1763547032152,-500.0,0.00015109,2]
[394415805,1763547032161,-500.0,0.00015109,2]
[394415807,1763547032171,-500.0,0.00015109,2]
[394415808,1763547032180,-500.0,0.00015109,2]
[394415809,1763547032189,-500.0,0.00015109,2]
[394415810,1763547032198,-500.0,0.00015109,2]
[394415811,1763547032208,-500.0,0.00015109,2]
[394415812,1763547032217,-500.0,0.00015109,2]
[394415813,1763547032226,-500.0,0.00015109,2]
[394415814,1763547032236,-500.0,0.00015109,2]
[394415815,1763547032245,-372.17750325,0.00015109,2]
[394415816,1763547032255,-500.0,0.00015109,2]
[394415817,1763547032264,-500.0,0.00015109,2]
[394415818,1763547032273,-500.0,0.00015109,2]
[394415819,1763547032282,-500.0,0.00015109,2]
[394415820,1763547032291,-500.0,0.00015109,2]
[394415821,1763547032301,-500.0,0.00015109,2]
[394415822,1763547032310,-500.0,0.00015109,2]
[394415823,1763547032319,-500.0,0.00015109,2]
[394415824,1763547032330,-500.0,0.00015109,2]
[394415825,1763547032339,-500.0,0.00015109,2]
[394415826,1763547032349,-500.0,0.00015109,2]
[394415827,1763547032358,-500.0,0.00015109,2]
[394415828,1763547032367,-500.0,0.00015109,2]
[394415829,1763547032376,-155.0,0.00015109,2]
[394415830,1763547032385,-503.22615307,0.00015109,2]
[394415831,1763547032394,-500.0,0.00015109,2]
[394415832,1763547032403,-500.0,0.00015109,2]
[394415833,1763547032412,-500.0,0.00015109,2]
[394415834,1763547032421,-500.0,0.00015109,2]
[394415835,1763547032431,-500.0,0.00015109,2]
[394415836,1763547032440,-429.35680199,0.00015109,2]
[394415837,1763547032449,-500.0,0.00015109,2]
[394415838,1763547032460,-500.0,0.00015109,2]
[394415839,1763547032469,-500.0,0.00015109,2]
[394415840,1763547032479,-500.0,0.00015109,2]
[394415841,1763547032488,-500.0,0.00015109,2]
[394415842,1763547032497,-500.0,0.00015109,2]
[394415843,1763547032506,-500.0,0.00015109,2]
[394415844,1763547032516,-500.0,0.00015109,2]
[394415845,1763547032525,-500.0,0.00015109,2]
[394415846,1763547032535,-340.68262281,0.00015109,2]
[394415847,1763547032545,-1913.86450191,0.00015109,2]
[394415848,1763547032556,-500.0,0.00015109,2]
[394415849,1763547032565,-1913.86450191,0.00015109,2]
[394415850,1763547032574,-1913.86450191,0.00015109,2]
[394415851,1763547032583,-500.0,0.00015109,2]
[394415852,1763547032593,-500.0,0.00015109,2]
[394415853,1763547032602,-1913.86450191,0.00015109,2]
[394415854,1763547032612,-1913.86450191,0.00015109,2]
[394415855,1763547032622,-500.0,0.00015109,2]
[394415856,1763547032631,-500.0,0.00015109,2]
[394415857,1763547032641,-500.0,0.00015109,2]
[394415858,1763547032650,-1913.86450191,0.00015109,2]
[394415859,1763547032659,-500.0,0.00015109,2]
[394415860,1763547032668,-1913.86450191,0.00015109,2]
[394415861,1763547032678,-500.0,0.00015109,2]
[394415862,1763547032687,-500.0,0.00015109,2]
[394415863,1763547032696,-1913.86450191,0.00015109,2]
[394415864,1763547032706,-500.0,0.00015109,2]
[394415865,1763547032715,-500.0,0.00015109,2]
[394415866,1763547032724,-500.0,0.00015109,2]
[394415867,1763547032733,-500.0,0.00015109,2]
[394415868,1763547032742,-500.0,0.00015109,2]
[394415869,1763547032751,-500.0,0.00015109,2]
[394415870,1763547032761,-1913.86450191,0.00015109,2]
[394415871,1763547032770,-500.0,0.00015109,2]
[394415872,1763547032780,-500.0,0.00015109,2]
[394415873,1763547032790,-349.59752929,0.00015109,2]
[394415874,1763547032799,-1913.86450191,0.00015109,2]
[394415875,1763547032808,-500.0,0.00015109,2]
[394415876,1763547032818,-500.0,0.00015109,2]
[394415877,1763547032828,-1913.86450191,0.00015109,2]
[394415878,1763547032837,-557.64163411,0.00015109,2]
[394415879,1763547032847,-500.0,0.00015109,2]
[394415880,1763547032856,-1834.79660548,0.00015109,2]
[394415881,1763547037791,-79.06789643,0.00015109,2]
[394415882,1763547037801,-500.0,0.00015109,2]
[394415883,1763547037811,-500.0,0.00015109,2]
[394415884,1763547037820,-1913.86450191,0.00015109,2]
[394415885,1763547037830,-500.0,0.00015109,2]
[394415886,1763547037839,-1913.86450191,0.00015109,2]
[394415887,1763547037848,-287.8466474,0.00015109,2]
[394415888,1763547037860,-212.1533526,0.00015109,2]
[394415889,1763547037870,-1913.86450191,0.00015109,2]
[394415890,1763547037879,-500.0,0.00015109,2]
[394415891,1763547037889,-500.0,0.00015109,2]
[394415892,1763547037898,-500.0,0.00015109,2]
[394415893,1763547037907,-1913.86450191,0.00015109,2]
[394415894,1763547037918,-500.0,0.00015109,2]
[394415895,1763547037927,-1913.86450191,0.00015109,2]
[394415896,1763547037936,-500.0,0.00015109,2]
[394415897,1763547037946,-1913.86450191,0.00015109,2]
[394415898,1763547037955,-500.0,0.00015109,2]
[394415899,1763547037965,-500.0,0.00015109,2]
[394415900,1763547037975,-1913.86450191,0.00015109,2]
[394415901,1763547037984,-1913.86450191,0.00015109,2]
[394415902,1763547037998,-500.0,0.00015109,2]
[394415903,1763547038008,-500.0,0.00015109,2]
[394415904,1763547038018,-1913.86450191,0.00015109,2]
[394415905,1763547038027,-500.0,0.00015109,2]
[394415906,1763547038037,-1913.86450191,0.00015109,2]
[394415907,1763547038047,-500.0,0.00015109,2]
[394415908,1763547038057,-1913.86450191,0.00015109,2]
[394415909,1763547038067,-500.0,0.00015109,2]
[394415910,1763547038077,-1913.86450191,0.00015109,2]
[394415911,1763547038086,-500.0,0.00015109,2]
[394415912,1763547038100,-500.0,0.00015109,2]
[394415913,1763547038110,-1913.86450191,0.00015109,2]
[394415914,1763547038120,-500.0,0.00015109,2]
[394415915,1763547038130,-1913.86450191,0.00015109,2]
[394415916,1763547038139,-1913.86450191,0.00015109,2]
[394415917,1763547038149,-1913.86450191,0.00015109,2]
[394415918,1763547038158,-1913.86450191,0.00015109,2]
[394415919,1763547038168,-1913.86450191,0.00015109,2]
[394415920,1763547038177,-1913.86450191,0.00015109,2]
[394415921,1763547038187,-1913.86450191,0.00015109,2]
[394415922,1763547038197,-1913.86450191,0.00015109,2]
[394415923,1763547038207,-1913.86450191,0.00015109,2]
[394415924,1763547038217,-1913.86450191,0.00015109,2]
[394415925,1763547038227,-1913.86450191,0.00015109,2]
[394415926,1763547038236,-1913.86450191,0.00015109,2]
[394415927,1763547038247,-1913.86450191,0.00015109,2]
[394415928,1763547038257,-1913.86450191,0.00015109,2]
[394415929,1763547038267,-1913.86450191,0.00015109,2]
[394415930,1763547038277,-1913.86450191,0.00015109,2]
[394415931,1763547038287,-1913.86450191,0.00015109,2]
[394415932,1763547038296,-1913.86450191,0.00015109,2]
[394415933,1763547038306,-1913.86450191,0.00015109,2]
[394415934,1763547038315,-1913.86450191,0.00015109,2]
[394415935,1763547038325,-1913.86450191,0.00015109,2]
[394415936,1763547038335,-1913.86450191,0.00015109,2]
[394415937,1763547038344,-1913.86450191,0.00015109,2]
[394415938,1763547038354,-1913.86450191,0.00015109,2]
[394415939,1763547038363,-1913.86450191,0.00015109,2]
[394415940,1763547038373,-1913.86450191,0.00015109,2]
[394415941,1763547038383,-1913.86450191,0.00015109,2]
[394415942,1763547038393,-1913.86450191,0.00015109,2]
[394415943,1763547038402,-1913.86450191,0.00015109,2]
[394415944,1763547038412,-1887.76634963,0.00015109,2]
[394415945,1763547038421,-1887.76634963,0.00015109,2]
[394415946,1763547038431,-1887.76634963,0.00015109,2]
[394415947,1763547038441,-1887.76634963,0.00015109,2]
[394415948,1763547038451,-1887.76634963,0.00015109,2]
[394415949,1763547038460,-1887.76634963,0.00015109,2]
[394415950,1763547038470,-1887.76634963,0.00015109,2]
[394415951,1763547038479,-1887.76634963,0.00015109,2]
[394415952,1763547038488,-1887.76634963,0.00015109,2]
[394415953,1763547038498,-1887.76634963,0.00015109,2]
[394415954,1763547038508,-1887.76634963,0.00015109,2]
[394415955,1763547038518,-1887.76634963,0.00015109,2]
[394415956,1763547038527,-1887.76634963,0.00015109,2]
[394415957,1763547038537,-1887.76634963,0.00015109,2]
[394415958,1763547038547,-1887.76634963,0.00015109,2]
[394415959,1763547038556,-1887.76634963,0.00015109,2]
[394415960,1763547038565,-1887.76634963,0.00015109,2]
[394415961,1763547038575,-1887.76634963,0.00015109,2]
[394415962,1763547038585,-1887.76634963,0.00015109,2]
[394415963,1763547038594,-1887.76634963,0.00015109,2]
[394415964,1763547038604,-1887.76634958,0.00015109,2]
[394415965,1763547038614,-1887.76634957,0.00015109,2]
[394415966,1763547038626,-1200.0,0.00015109,2]
[394415967,1763547038636,-50000.0,0.00015109,2]
[394415968,1763547038646,-500.0,0.00015111,2]
[394415969,1763547038655,-500.0,0.00015111,2]
[394415970,1763547038666,-151.0,0.00015111,2]
[394415971,1763547038676,-500.0,0.00015112,2]
[394415972,1763547038685,-500.0,0.00015113,2]
[394415973,1763547038694,-500.0,0.00015113,2]
[394415974,1763547038704,-524.15073761,0.00015113,2]
[394415975,1763547038713,-500.0,0.00015113,2]
[394415976,1763547038723,-495.42104687,0.00015113,2]
[394415977,1763547038732,-500.0,0.00015113,2]
[394415978,1763547038742,-532.66965828,0.00015113,2]
[394415979,1763547038751,-500.0,0.00015113,2]
[394415980,1763547038761,-1000.0,0.00015113,2]
[394415981,1763547038770,-1000.0,0.00015113,2]
[394415982,1763547038780,-1007.6700603,0.00015113,2]
[394415983,1763547038789,-530.23893886,0.00015113,2]
[394415984,1763547038799,-500.0,0.00015138,2]
[394415985,1763547038809,-500.0,0.00015138,2]
[394415986,1763547038819,-254.3822629,0.00015138,2]
[394415987,1763547038828,-500.0,0.0001514,2]
[394415988,1763547038838,-1000.0,0.00015153,2]
[394415989,1763547038847,-500.0,0.00015166,2]
[394415990,1763547038857,-500.0,0.00015166,2]
[394415991,1763547038868,-500.0,0.00015168,2]
[394415992,1763547038877,-155.255002,0.0001517,2]
[394415993,1763547038886,-506.21040193,0.00015173,2]
[394415994,1763547038896,-500.0,0.00015173,2]
[394415995,1763547038905,-500.0,0.00015173,2]
[394415996,1763547038915,-503.65604025,0.00015173,2]
[394415997,1763547038925,-164.22872862,0.00015173,2]
[394415998,1763547038935,-500.0,0.00015173,2]
[394415999,1763547038945,-500.0,0.00015173,2]
[394416000,1763547038954,-506.7958722,0.00015173,2]
[394416001,1763547038964,-500.0,0.00015173,2]
[394416002,1763547038974,-500.0,0.00015173,2]
[394416003,1763547038984,-500.0,0.00015173,2]
[394416004,1763547038998,-151.0,0.00015173,2]
[394416005,1763547039008,-500.0,0.00015193,2]
[394416006,1763547039017,-500.0,0.00015193,2]
[394416007,1763547039027,-500.0,0.00015195,2]
[394416008,1763547039038,-500.0,0.00015221,2]
[394416009,1763547039047,-500.0,0.00015221,2]
[394416010,1763547039057,-500.0,0.00015223,2]
[394416011,1763547039069,-500.0,0.00015248,2]
[394416012,1763547039081,-500.0,0.00015248,2]
[394416013,1763547039091,-500.0,0.0001525,2]
[394416014,1763547039102,-441.68803233,0.00015275,2]
[394416015,1763547039112,-500.0,0.00015386,2]
[394416016,1763547039122,-600.0,0.00015417,2]
[394416017,1763547039132,-500.0,0.0001566,2]
[394416018,1763547039142,-1000.0,0.00015721,2]
[394416019,1763547039152,-1000.0,0.00015721,2]
[394416020,1763547039162,-1000.0,0.00015721,2]
[394416021,1763547039173,-581.70931609,0.00015721,2]
[394416022,1763547039183,-1000.0,0.00015721,2]
[394416023,1763547039193,-1000.0,0.00015721,2]
[394416024,1763547039203,-1000.0,0.00015721,2]
[394416025,1763547039213,-263.7431718,0.00015809,2]
[394416026,1763547039223,-501.07532964,0.00015875,2]
[394416027,1763547039233,-500.0,0.00015875,2]
[394416028,1763547039242,-500.0,0.00015918,2]
[394416029,1763547039251,-500.0,0.00015918,2]
[394416030,1763547039260,-500.0,0.00015918,2]
[394416031,1763547039269,-500.0,0.00015918,2]
[394416032,1763547039278,-500.0,0.00015918,2]
[394416033,1763547039288,-500.0,0.00015918,2]
[394416034,1763547039297,-507.6968814,0.00015918,2]
[394416035,1763547039307,-500.0,0.00015918,2]
[394416036,1763547039315,-500.0,0.00015918,2]
[394416037,1763547039324,-500.0,0.00015918,2]
[394416038,1763547039335,-500.0,0.00015918,2]
[394416039,1763547039344,-500.0,0.00015918,2]
[394416040,1763547039354,-500.0,0.00015918,2]
[394416041,1763547039363,-505.49963257,0.00015918,2]
[394416042,1763547039373,-500.0,0.00015934,2]
[394416043,1763547039383,-500.0,0.00015938,2]
[394416044,1763547039392,-500.0,0.00015938,2]
[394416045,1763547039402,-500.0,0.00015938,2]
[394416046,1763547039411,-500.0,0.00015938,2]
[394416047,1763547039420,-506.69049003,0.0001594,2]
[394416048,1763547039430,-500.0,0.0001594,2]
[394416049,1763547039439,-500.0,0.0001594,2]
[394416050,1763547039449,-506.29595838,0.0001594,2]
[394416051,1763547039458,-502.19973818,0.0001594,2]
[394416052,1763547039467,-500.0,0.0001594,2]
[394416054,1763547039476,-506.10151376,0.00015969,2]
[394416056,1763547039486,-263.70606165,0.00015969,2]
[394416057,1763547039495,-500.0,0.00015969,2]
[394416058,1763547039505,-500.0,0.00015969,2]
[394416062,1763547039605,-500.0,0.00015969,2]
[394416063,1763547039615,-83806.36964115,0.00016196,2]
[394416064,1763547039625,-500.0,0.00016208,2]
[394416065,1763547039634,-503.87177589,0.00016268,2]
[394416066,1763547039644,-1114.37447076,0.00016268,2]
[394416067,1763547039653,-440.78990971,0.00016268,2]
[394416068,1763547039662,-502.36654671,0.00016268,2]
[394416069,1763547039672,-1116.54856462,0.00016268,2]
[394416070,1763547039681,-1500.0,0.00016268,2]
[394416071,1763547039690,-1000.0,0.00016422,2]
[394416072,1763547039699,-151.000082,0.00016438,2]
[394416073,1763547039708,-151.0,0.00016438,2]
[394416074,1763547039717,-151.0,0.00016438,2]
[394416075,1763547039726,-151.0,0.00016438,2]
[394416076,1763547039735,-151.0,0.00016438,2]
[394416077,1763547039744,-275.283086,0.00016438,2]
[394416078,1763547039753,-500.0,0.00016438,2]
[394416079,1763547039762,-500.0,0.00016438,2]
[394416080,1763547039771,-500.0,0.00016438,2]
[394416082,1763547039780,-500.0,0.00016438,2]
[394416084,1763547039789,-500.0,0.00016438,2]
[394416086,1763547039798,-500.0,0.00016438,2]
[394416088,1763547039808,-500.0,0.00016438,2]
[394416090,1763547039817,-500.0,0.00016438,2]
[394416091,1763547039827,-500.0,0.00016438,2]
[394416092,1763547039835,-500.0,0.00016438,2]
[394416093,1763547039844,-500.0,0.00016438,2]
[394416094,1763547039854,-167.18232728,0.00016438,2]
[394416095,1763547039863,-500.0,0.00016438,2]
[394416096,1763547039872,-500.0,0.00016438,2]
[394416097,1763547039881,-500.0,0.00016438,2]
[394416098,1763547039889,-500.0,0.00016438,2]
[394416099,1763547039898,-500.0,0.00016438,2]
[394416100,1763547039907,-500.0,0.00016438,2]
[394416101,1763547039916,-500.0,0.00016438,2]
[394416102,1763547039926,-500.0,0.00016438,2]
[394416103,1763547039935,-500.0,0.00016438,2]
[394416104,1763547039944,-500.0,0.00016438,2]
[394416105,1763547039954,-500.0,0.00016438,2]
[394416106,1763547039963,-250.0,0.00016438,2]
[394416107,1763547039973,-500.0,0.00016438,2]
[394416108,1763547039982,-500.0,0.00016438,2]
[394416109,1763547039994,-500.0,0.00016438,2]
[394416110,1763547040003,-500.0,0.00016438,2]
[394416111,1763547040012,-500.0,0.00016438,2]
[394416112,1763547040021,-500.0,0.00016438,2]
[394416113,1763547040031,-500.0,0.00016438,2]
[394416114,1763547040040,-500.0,0.00016438,2]
[394416115,1763547040050,-500.0,0.00016438,2]
[394416116,1763547040060,-500.0,0.00016438,2]
[394416117,1763547040071,-500.0,0.00016438,2]
[394416118,1763547040081,-500.0,0.00016438,2]
[394416119,1763547040090,-500.0,0.00016438,2]
[394416120,1763547040099,-500.0,0.00016438,2]
[394416121,1763547040108,-252.12161121,0.00016438,2]
[394416122,1763547040117,-500.0,0.00016438,2]
[394416123,1763547040126,-500.0,0.00016438,2]
[394416124,1763547040135,-500.0,0.00016438,2]
[394416125,1763547040144,-500.0,0.00016438,2]
[394416126,1763547040153,-500.0,0.00016438,2]
[394416127,1763547040162,-500.0,0.00016438,2]
[394416128,1763547040171,-500.0,0.00016438,2]
[394416129,1763547040181,-500.0,0.00016438,2]
[394416130,1763547040190,-500.0,0.00016438,2]
[394416131,1763547040199,-500.0,0.00016438,2]
[394416132,1763547040209,-500.0,0.00016438,2]
[394416133,1763547040218,-500.0,0.00016438,2]
[394416134,1763547040228,-500.0,0.00016438,2]
[394416135,1763547040237,-500.0,0.00016438,2]
[394416136,1763547040247,-500.0,0.00016438,2]
[394416137,1763547040256,-500.0,0.00016438,2]
[394416138,1763547040269,-500.0,0.00016438,2]
[394416139,1763547040278,-500.0,0.00016438,2]
[394416140,1763547040287,-521.26251211,0.00016438,2]
[394416141,1763547040296,-500.0,0.00016438,2]
[394416142,1763547040305,-500.0,0.00016438,2]
[394416143,1763547040315,-500.0,0.00016438,2]
[394416144,1763547040324,-500.0,0.00016438,2]
[394416145,1763547040335,-500.0,0.00016438,2]
[394416146,1763547040344,-500.0,0.00016438,2]
[394416147,1763547040353,-500.0,0.00016438,2]
[394416148,1763547040363,-500.0,0.00016438,2]
[394416149,1763547040373,-500.0,0.00016438,2]
[394416150,1763547040382,-500.0,0.00016438,2]
[394416151,1763547040391,-500.0,0.00016438,2]
[394416152,1763547040409,-500.0,0.00016438,2]
[394416153,1763547040420,-500.0,0.00016438,2]
[394416154,1763547040430,-500.0,0.00016438,2]
[394416155,1763547040439,-500.0,0.00016438,2]
[394416156,1763547040449,-500.0,0.00016438,2]
[394416157,1763547040459,-500.0,0.00016438,2]
[394416158,1763547040468,-500.0,0.00016438,2]
[394416159,1763547040477,-500.0,0.00016438,2]
[394416160,1763547040486,-500.0,0.00016438,2]
[394416161,1763547040496,-500.0,0.00016438,2]
[394416162,1763547040506,-500.0,0.00016438,2]
[394416163,1763547040515,-500.0,0.00016438,2]
[394416164,1763547040525,-500.0,0.00016438,2]
[394416165,1763547040535,-500.0,0.00016438,2]
[394416166,1763547040544,-500.0,0.00016438,2]
[394416167,1763547040554,-300.0,0.00016438,2]
[394416168,1763547040564,-151.0,0.00016438,2]
[394416169,1763547040578,-1000.0,0.00016466,2]
[394416170,1763547040588,-500.81441983,0.00016466,2]
[394416171,1763547040597,-1000.0,0.00016466,2]
[394416172,1763547040606,-1000.0,0.00016466,2]
[394416173,1763547040616,-325.78165932,0.00016466,2]
[394416174,1763547040625,-1000.0,0.00016466,2]
[394416175,1763547040634,-1000.0,0.00016466,2]
[394416176,1763547040644,-1000.0,0.00016466,2]